Cogmind - Beta 13 --- EXPLORER MODE // 2024.04.01 @ 03:12:46 Player: Mae Result: Destroyed by Y-45 Defender with Beam Rifle Performance ------------- Evolutions (1) 500 Regions Visited (4) 800 Robots Destroyed (33) 165 Value Destroyed (1138) 1138 Prototype IDs (6) 120 Alien Tech Used (0) 0 Bonus (200) 200 TOTAL SCORE: 2923 Bonus ------- Entered Garrisons 200 Cogmind --------- Core Integrity 0/400 Matter 189/300 Energy 99/100 System Corruption 6% Temperature Cool (9) Movement Core (250) Ox4 Location -9/Garrison Parts ------- > --- POWER (1) -------- (None) > --- PROPULSION (2) --- (None) > --- UTILITY (4) ------ Medium Storage Unit Targeting Computer > --- WEAPON (3) ------- Assault Rifle Mace > --- INVENTORY (10) --- High-capacity Matter Pod (200) High-capacity Matter Pod (200) High-capacity Matter Pod (200) Peak State ------------ > --- POWER ------------ Heavy Ion Engine > --- PROPULSION ------- Wheel > --- UTILITY ---------- Medium Storage Unit Sensor Array Targeting Computer Medium Armor Plating > --- WEAPON ----------- Improved Medium Laser Mace Mace > --- INVENTORY -------- High-capacity Matter Pod High-capacity Matter Pod High-capacity Matter Pod Light Armor Plating Assault Rifle Grenade Launcher Mace [Rating: 16] Favorites ----------- Power Light Nuclear Core Engine Light Ion Engine Power Core Light Nuclear Core Propulsion Wheel Leg Aluminum Leg Wheel Wheel Utility Targeting Computer Device Sensor Array Storage Medium Storage Unit Processor Targeting Computer Protection Light Armor Plating Weapon Mace Energy Gun Small Laser Energy Cannon Advanced Beam Cannon Ballistic Gun Assault Rifle Ballistic Cannon Light Cannon Launcher Grenade Launcher Impact Weapon Mace Build | -11 -10 -9 -9 -9 ------- Run | Yrd Mat Mat Sto Gar Slots Evolved 3 | . 1 2 . . Power . | . . . . . Propulsion . | . . . . . Utility 2 | . 1 1 . . Weapon 1 | . . 1 . . Parts Attached 30 | 7 3 8 9 3 Power 4 | 1 1 . 2 . Engine 3 | 1 . . 2 . Core 1 | . 1 . . . Reactor . | . . . . . Propulsion 3 | 2 . . 1 . Treads . | . . . . . Leg 1 | . . . 1 . Wheel 2 | 2 . . . . Hover . | . . . . . Flight . | . . . . . Utility 9 | 2 1 3 2 1 Device 1 | 1 . . . . Storage 3 | . . 2 1 . Processor 1 | . 1 . . . Hackware . | . . . . . Protection 4 | 1 . 1 1 1 Artifact . | . . . . . Weapon 14 | 2 1 5 4 2 Energy Gun 2 | 1 . . 1 . Energy Cannon 1 | . . . 1 . Ballistic Gun 2 | 1 . . . 1 Ballistic Cannon 1 | . 1 . . . Launcher 2 | . . 1 . 1 Special Weapon . | . . . . . Impact Weapon 6 | . . 4 2 . Slashing Weapon . | . . . . . Piercing Weapon . | . . . . . Special Melee Weapon . | . . . . . Unidentified Prototypes 3 | . . . 3 . Corrupted Parts 1 | . . . 1 . System Corruption 5 | . . . 5 . Parts Lost 9 | . . . 7 2 Power 2 | . . . 2 . Propulsion 3 | . . . 3 . Utility 2 | . . . 1 1 Weapon 2 | . . . 1 1 Highest Loss Streak 3 | . . . 3 2 To Critical Strikes . | . . . . . Average Slot Usage (%) 81 | . 100 100 71 55 Engine 3 | . 5 . 4 . Core 4 | . 6 10 2 . Leg 1 | . . . 2 . Wheel 11 | . 25 20 4 . Device 8 | . 12 10 7 . Storage 7 | . . 10 10 10 Processor 10 | . 12 10 10 10 Protection 6 | . 12 10 3 8 Energy Gun 2 | . 9 . . . Ballistic Gun 4 | . 12 7 . 8 Ballistic Cannon 1 | . 2 7 . . Launcher 1 | . . 3 . 8 Impact Weapon 16 | . . 11 27 10 Naked Turns . | . . . . . Heaviest Build 33 | 10 14 20 33 20 Greatest Support 20 | 20 20 20 20 3 Greatest Overweight (x) 6 | . . . 6 6 Average Overweight (x) 1 | . . . 2 5 Largest Inventory Capacity 10 | 5 5 10 10 10 Average Capacity 7 | 5 5 5 10 10 Most Carried 8 | 2 5 5 8 6 Average Carried 4 | . 2 3 5 3 Final Capacity 10 | 5 5 5 10 10 Final Carried 6 | 1 5 3 6 3 Class Distribution -------------------- 93% | Hacker-Mutant 6% | Hacker-Gunner Dominant Class ---------------- Hacker-Mutant | -10/Materials Hacker-Mutant | -9/Materials Hacker-Mutant | -9/Storage Hacker-Mutant | -9/Garrison Resources | -11 -10 -9 -9 -9 ----------- Run | Yrd Mat Mat Sto Gar Matter Collected 1361 | 266 117 318 660 . Remotely . | . . . . . Salvage Created 1124 | 48 311 170 536 59 Parts 49 | 2 17 11 13 6 Haulers Intercepted . | . . . . . Recyclers Shooed . | . . . . . Parts Field Recycled . | . . . . . Retrieved Matter . | . . . . . Parts Self-Destructed . | . . . . . Prevented . | . . . . . Kills | -11 -10 -9 -9 -9 ------- Run | Yrd Mat Mat Sto Gar Combat Hostiles Destroyed 28 | 1 6 4 13 4 Melee 7 | . . 1 6 . Guns 8 | 1 6 . . 1 Cannons 2 | . . 2 . . AOE 3 | . . . . 3 Classes Destroyed 6 | 1 1 1 2 1 Watcher 5 | . 2 3 . . Swarmer 3 | . . . . 3 Grunt 15 | 1 6 2 6 . Brawler 1 | . . . 1 . Duelist 1 | . . . 1 . Sentry 8 | . . 2 5 1 Best Kill Streak 5 | 1 4 2 5 4 Combat Bots Only 5 | 1 4 2 5 4 Max Kills in Single Turn 3 | 1 1 1 1 3 Gunslinging . | . . . . . Exploded 2 | . . . . 2 Melee 1 | . . 1 1 . Uniques/NPCs Destroyed . | . . . . . Combat | -11 -10 -9 -9 -9 -------- Run | Yrd Mat Mat Sto Gar Hostile Shots Fired 253 | 2 39 33 155 24 Missed 65 | . 13 8 37 7 Damage Taken 1683 | 13 202 219 1047 202 Core 479 | 6 73 49 292 59 Absorbed by Shields . | . . . . . Ignored by Resistances 1038 | 9 126 133 644 126 Core Remaining (%) 82 | 97 68 . . . Volleys Fired 46 | 2 22 14 . 8 Largest 2 | 2 2 2 . 2 Hottest 60 | 60 60 55 . 50 Shots Fired 90 | 4 44 28 . 14 Gun 69 | 4 43 14 . 8 Cannon 15 | . 1 14 . . Launcher 6 | . . . . 6 Special . | . . . . . Kinetic 61 | 2 23 28 . 8 Thermal 23 | 2 21 . . . Explosive 6 | . . . . 6 Electromagnetic . | . . . . . Robot Hit Streak 41 | 3 41 28 . 41 Robot Miss Streak 1 | . 1 . . . Penetration Max . | . . . . . Secondary Targets 3 | . 3 . . . Max Gunslinging Chain 1 | . 1 . . . Shots Hit Robots 154 | 3 40 37 61 13 Core Hits 45 | 2 17 11 4 11 Critical Kills 2 | . . . 2 . Critical Parts Destroyed 15 | . 1 1 13 . Critical Strikes 18 | . 1 1 16 . Destroy 1 | . 1 . . . Smash 17 | . . 1 16 . Melee Attacks 74 | . . 11 63 . Impact 74 | . . 11 63 . Slashing . | . . . . . Piercing . | . . . . . Sneak Attacks 1 | . . . 1 . Combat Hostiles . | . . . . . Follow-up Attacks 14 | . . . 14 . Damage Inflicted 3059 | 34 506 580 1600 339 Guns 784 | 34 487 166 . 97 Cannons 246 | . 19 227 . . Explosions 242 | . . . . 242 Melee 1787 | . . 187 1600 . Ramming . | . . . . . Kinetic 797 | 12 295 393 . 97 Thermal 233 | 22 211 . . . Explosive 242 | . . . . 242 Electromagnetic . | . . . . . Impact 1787 | . . 187 1600 . Slashing . | . . . . . Piercing . | . . . . . Highest Corruption 6 | . . . 6 6 Average Corruption 3 | . . . 2 6 Corruption Purged . | . . . . . Corruption Blocked . | . . . . . Effects 16 | . . . 11 5 Message Errors 5 | . . . 3 2 Matter Fused 2 | . . . 1 1 Heat Flow Errors 2 | . . . 2 . Energy Discharges 3 | . . . 2 1 Parts Rejected 1 | . . . 1 . Data Loss (minor) 1 | . . . 1 . Data Loss (major) 2 | . . . 1 1 Overload Shots . | . . . . . Overflow Damage 383 | . . 11 369 3 Projectiles . | . . . . . Explosions 3 | . . . . 3 Melee 380 | . . 11 369 . Knockbacks 2 | . . . 2 . Impact 2 | . . . 2 . Kinetic . | . . . . . Secondary . | . . . . . Self-Inflicted Damage 54 | . . . . 54 Shots 5 | . . . . 5 Rammed . | . . . . . Targets Rammed . | . . . . . Kicked . | . . . . . Crushed . | . . . . . Highest Temperature 223 | 12 188 54 223 15 Average Temperature 54 | 11 67 17 79 11 Received Heat Transfer 1170 | 12 207 150 684 117 Effects 1 | . . . 1 . Interference 1 | . . . 1 . Siege Activations . | . . . . . Robots Corrupted . | . . . . . Combat Hostiles . | . . . . . Parts Fried 5 | . . . 5 . Impact Corruptions 19 | . . 2 17 . Robots Melted . | . . . . . Combat Hostiles . | . . . . . Parts Melted 2 | 1 1 . . . Heat Transferred 525 | 50 475 . . . Parts Sabotaged . | . . . . . Parts Stolen . | . . . . . Parts Stripped . | . . . . . Power Chain Reactions . | . . . . . Alert | -11 -10 -9 -9 -9 ------- Run | Yrd Mat Mat Sto Gar Peak Influence 325 | 20 206 255 325 110 Initial 77 | . 9 62 77 12 Average 115 | 4 124 154 123 23 Maximum Alert Level 1 | . 1 1 1 . Low Security (%) 79 | 100 98 65 71 100 Level 1 20 | . 1 34 28 . Level 2 . | . . . . . Level 3 . | . . . . . Level 4 . | . . . . . Level 5 . | . . . . . High Security . | . . . . . Max Security . | . . . . . Squads Dispatched 3 | . . 1 2 . Investigation . | . . . . . Extermination . | . . . . . Reinforcement 2 | . . 1 1 . Assault . | . . . . . Garrison 1 | . . . 1 . Intercept . | . . . . . Searches Triggered . | . . . . . Construction Impeded . | . . . . . Haulers Reinforced . | . . . . . Active Scanning Responses . | . . . . . Cargo Convoy Interrupts . | . . . . . Stealth | -11 -10 -9 -9 -9 --------- Run | Yrd Mat Mat Sto Gar Distress Signals 2 | . 2 . . . Communications Jammed . | . . . . . Distress Signals . | . . . . . Times Spotted 37 | 1 8 7 16 5 Peak Tracking Total 5 | . 5 2 5 5 Tactical Retreats 1 | . 1 . . . Traps | -11 -10 -9 -9 -9 ------- Run | Yrd Mat Mat Sto Gar Traps Triggered 4 | . . . 4 . Indirectly . | . . . . . Trap Hack Attempts . | . . . . . Triggered . | . . . . . Disarmed . | . . . . . Reprogrammed . | . . . . . Reused . | . . . . . Traps Extracted . | . . . . . Installed . | . . . . . Triggered 1 | . . . 1 . Machines | -11 -10 -9 -9 -9 ---------- Run | Yrd Mat Mat Sto Gar Machines Disabled 1 | . . . 1 . Max in Single Turn 1 | . . . 1 . Machines Repaired . | . . . . . Machines Dismantled . | . . . . . Machines Sabotaged . | . . . . . Overloaded Fab Kills . | . . . . . Hacking | -11 -10 -9 -9 -9 --------- Run | Yrd Mat Mat Sto Gar Machines Accessed 10 | . 3 2 5 . Terminals 9 | . 3 2 4 . Fabricators . | . . . . . Repair Stations . | . . . . . Recycling Units . | . . . . . Scanalyzers . | . . . . . Garrison Access 1 | . . . 1 . Total Hacks 16 | . 3 7 6 . Successful 14 | . 3 6 5 . Failed 2 | . . 1 1 . Catastrophic . | . . . . . Database Lockouts . | . . . . . Manual 1 | . . . 1 . Terminals 15 | . 3 7 5 . Fabricators . | . . . . . Repair Stations . | . . . . . Recycling Units . | . . . . . Scanalyzers . | . . . . . Garrison Access 1 | . . . 1 . Terminal Hacks 13 | . 3 6 4 . Record 8 | . 1 5 2 . Part Schematic 1 | . . . 1 . Prototype ID Bank 2 | . 1 1 . . Open Door 1 | . . . 1 . Zone Layout 1 | . 1 . . . Fabricator Hacks . | . . . . . Repair Station Hacks . | . . . . . Recycling Unit Hacks . | . . . . . Scanalyzer . | . . . . . Garrison Access Hacks 1 | . . . 1 . Unlock Access 1 | . . . 1 . Unauthorized Hacks . | . . . . . Terminals . | . . . . . Fabricators . | . . . . . Repair Stations . | . . . . . Recycling Units . | . . . . . Scanalyzers . | . . . . . Garrison Access . | . . . . . Data Cores Recovered . | . . . . . Used . | . . . . . Hacking Detections 5 | . 1 1 3 . Full Trace Events . | . . . . . Feedback Events . | . . . . . Feedback Blocked . | . . . . . Robot Schematics Acquired . | . . . . . Robots Built . | . . . . . Authchips . | . . . . . Time . | . . . . . Total Robot Build Rating . | . . . . . Part Schematics Acquired 1 | . . . 1 . Parts Built . | . . . . . Authchips . | . . . . . Time . | . . . . . Total Part Build Rating . | . . . . . Parts Repaired . | . . . . . Time . | . . . . . Parts Recycled . | . . . . . Recycled Matter . | . . . . . Retrieved Matter . | . . . . . Retrieved Components . | . . . . . Parts Scanalyzed . | . . . . . Part Schematics Acquired . | . . . . . Parts Damaged . | . . . . . Bothacking | -11 -10 -9 -9 -9 ------------ Run | Yrd Mat Mat Sto Gar Used RIF Installer . | . . . . . Robots Hacked . | . . . . . Non-combat . | . . . . . Combat . | . . . . . Robot Hacks Applied . | . . . . . Relay Couplers Released . | . . . . . Fabnet Peak Effective % . | . . . . . Robots Rewired . | . . . . . Allies Hacked . | . . . . . Hacks Repelled . | . . . . . Allies | -11 -10 -9 -9 -9 -------- Run | Yrd Mat Mat Sto Gar Total Allies . | . . . . . Largest Group . | . . . . . Highest-Rated Group . | . . . . . Highest-Rated Ally . | . . . . . Total Orders . | . . . . . Ally Attacks . | . . . . . Total Damage . | . . . . . Kills . | . . . . . Allies Corrupted . | . . . . . Allies Melted . | . . . . . Intel | -11 -10 -9 -9 -9 ------- Run | Yrd Mat Mat Sto Gar Robot Analysis Total . | . . . . . Derelict Logs Recovered . | . . . . . Drone Launches . | . . . . . Drone Recoveries . | . . . . . Exploration | -11 -10 -9 -9 -9 ------------- Run | Yrd Mat Mat Sto Gar Turns Passed 1687 | 71 340 305 814 157 Spaces Moved 1013 | 67 310 253 341 42 Core 186 | 17 . . 127 42 Treads . | . . . . . Legs 28 | . . . 28 . Wheels 799 | 50 310 253 186 . Hover . | . . . . . Flight . | . . . . . Fastest Speed 50 | 50 80 80 95 200 Average Speed 125 | 72 80 80 186 317 Slowest Speed 350 | 80 80 80 350 350 Overloaded Moves . | . . . . . Propulsion Burnouts . | . . . . . Robots Hopped . | . . . . . Cave-ins Triggered . | . . . . . Exploration Rate (%) 26 | 5 41 25 46 13 Regions Visited 4 Branch Regions 1 Pre-discovered Areas . | . . . . . Known Exits Taken 4 | 1 1 1 1 . Unknown Exits Taken . | . . . . . Scrap Searched . | . . . . . Spaces Dug 1 | . . . 1 . Terrain Destroyed 4 | . . . 1 3 Melee 1 | . . . 1 . Projectile . | . . . . . AOE 3 | . . . . 3 Terrain Rammed . | . . . . . Walls Destroyed . | . . . . . Machines Disabled . | . . . . . Actions | -11 -10 -9 -9 -9 --------- Run | Yrd Mat Mat Sto Gar Total 1236 | 85 357 310 431 53 Wait 53 | 2 16 15 20 . Move 1009 | 66 309 252 340 42 Hop . | . . . . . Pick Up 29 | 8 6 5 10 . Fast Attach . | . . . . . Attach 18 | 7 1 2 5 3 Detach . | . . . . . Swap 12 | . 2 6 4 . Drop 11 | . 1 6 4 . Fire 46 | 2 22 14 . 8 Melee 58 | . . 10 48 . Ram . | . . . . . Kick . | . . . . . Crush . | . . . . . Escape Stasis . | . . . . . Rewire . | . . . . . Trap . | . . . . . Miscellaneous . | . . . . . Route ------- -11/Scrapyard -10/Materials (discovered 2 exits: *Mat / Min) -9/Materials (discovered 2 exits: *Mat / *Sto) -9/Storage -9/Garrison History --------- Turn | Location | Event 2 | -11/Scrapyard | Met Revision 17 50 | -11/Scrapyard | Identified exit to Materials 50 | -11/Scrapyard | Discovered exit to Materials (range 8) 72 | -11/Scrapyard | Entered Materials 72 | -10/Materials | Evolved 1 slot: Utility x1 317 | -10/Materials | Build established: Hacker-Mutant 345 | -10/Materials | Identified exit to Materials 345 | -10/Materials | Discovered exit to Materials (range 3) 374 | -10/Materials | Identified exit to Mines 374 | -10/Materials | Discovered exit to Mines (range 8) 412 | -10/Materials | Entered another Materials area 412 | -9/Materials | Evolved 2 slots: Utility x1, Weapon x1 699 | -9/Materials | Identified exit to Storage 699 | -9/Materials | Discovered exit to Storage (range 3) 707 | -9/Materials | Identified exit to Materials 707 | -9/Materials | Discovered exit to Materials (range 16) 717 | -9/Materials | Entered Storage 1035 | -9/Storage | Lost 3 parts (1p1n1u) 1431 | -9/Storage | Core integrity fell below 50% 1434 | -9/Storage | Garrison activated, responded to threat 1465 | -9/Storage | Core integrity fell below 20% 1504 | -9/Storage | Lost 3 parts (1p1n1w) 1529 | -9/Storage | Identified exit to Garrison 1531 | -9/Storage | Entered Garrison 1664 | -9/Garrison | Triggered checkpoint 1688 | -9/Garrison | Destroyed by Y-45 Defender with Beam Rifle Last Messages --------------- Access door unlocked. EXIT=UNLOCKED: GARRISON LOCATION=GARRISON GOAL=ESCAPE System corrupted: Energy discharge (-21). UF8 VK8DWOPE/OBUSI Y8::J IWJ System corrupted: Substantial component data lost. System corrupted: Matter fused (-7). Beams of light sweep through the air. An alarm sounds. Lgt. Armor Plating destroyed. S-10 Pest destroyed. Destroyed Flight Unit. S-10 Pest destroyed. Critical hit (Burn: +37). VHFDZD,Y9FX %ZRPMVBMIVCR Y-45 Defender destroyed. Critical hit (Burn: +37). Grenade Launcher destroyed. Map ----- +----------------------------------------------------+ | ??????????????????????????????????????? | | ??????????????????????????????????????? | | ??????????????????????????????????????? | | ??????????????????????????????????????? | | ??????????????????????????????????????? | | ??????????????????????????????????????? | | ??????????????????????????????????????? | | ?????????????????##???????????????????? | | ????????????????# ???????????????????? | | ????????????????# ???????????????????? | | ????????????????# ???????????????????? | | ??????????????### ???????????????????? | | ??????????????#"# #??????????????????? | | ??????????????#" "??????????????????? | | ???????????????" "??????????????????? | | ???????????????? "??????????????????? | | ????????????????# #??????????????????? | | ????????????????# #??????????????????? | | ??????# # ##### ##################?? | | ????????? ? | | ????????????????# ? | | ????????????????# ### ? | | ????????????????# #?# #########????? | | ????????????????# #?# #????????????? | | ???????########## #?# #????????????? | | ???# @ #?# #????????????? | | ???# ^ #?# #????????????? | | ???# # # =######?# #????????????? | | ???????? [ Y???????# #????????????? | | ?????? #####???????# #????????????? | | ???? #?????????????# #????????????? | | ???# ???????????????# #????????????? | | ???#?????????????????# #????????????? | | ?????????????????????# #????????????? | | ?????????????????????# #????????????? | | ?????????????????????# #????????????? | | ?????????????????????# #????????????? | | ?????????????????????# #????????????? | | ?????????????????????# #????????????? | | ?????????????????????# #????????????? | | ??????????############ #????????????? | | ??????????# #????????????? | | ??????????# #????????????? | | ??????????# #????????????? | | ??????????################????????????? | | ??????????????????????????????????????? | | ??????????????????????????????????????? | | ??????????????????????????????????????? | | ??????????????????????????????????????? | | ??????????????????????????????????????? | +----------------------------------------------------+ Best States ------------- Heat Dissipation 28 Energy Generation 14 Energy Capacity 280 Matter Stores 437 Matter Capacity 450 Sight Range 16 Robot Scan Range 14 Terrain Scan Density 10 Armor Coverage 225 Resistance: KI 35 Resistance: TH 35 Resistance: EX 35 Resistance: EM 35 Resistance: I 35 Resistance: S 35 Resistance: P 35 Evasion (%) 50 Targeting Accuracy 5 Offensive Hacking 20 Item Schematics ----------------- Field Laser | -9/Storage | Hacked Robot Schematics ------------------ None Fabricated ------------ Nothing Alien Tech Used ----------------- None Achievements -------------- None Challenges ------------ None Game ------ Seed ImprovedExplosiveLink Manual? 0 Play Time 00:21:12 Cumulative 2.9 hours Start 2024.04.01 @ 02:50:53 End 2024.04.01 @ 03:12:46 Sessions 1 Manual Loads 0 Difficulty Explorer Special Mode None Game No. 8 Rogue 5 Adventurer 0 Explorer 3 Win Type - Total 0 Types 0/0/0/0/0/0/0/0/0 Lore% 12 Gallery% 11 Achievement% 10 Wizard Run 0 Options --------- Layout 2 ASCII 0 Keyboard 0 Movement Numpad Keybinds 0 Fullscreen 2 Font 24/Smallcaps Map View 50x44 Zoom Use 0% Tactical HUD 0 Map Filters NONE Filters NONE Steam 1 RUN: 7a6e6097-6f00-42c5-9507-b032e1209298